fUSD/lending_fUSD_20260129
["ID","MTS","AMOUNT","RATE_DAILY","PERIOD"]
[404011954,1769717446188,-1667.05040884,0.00018,2]
[404011955,1769717446207,-447.27153168,0.00018,2]
[404011956,1769717446218,-5775.88703482,0.00018,2]
[404011957,1769717446229,-854.08114636,0.00018,2]
[404011958,1769717446241,-735.24608787,0.00018,2]
[404011959,1769717446251,-565.51266088,0.00018,2]
[404011967,1769717446529,-3190.48559215,0.00018,2]
[404011968,1769717446541,-3411.37260033,0.00018,2]
[404011969,1769717446553,-3708.55366339,0.00018,2]
[404011970,1769717446957,-2201.80956843,0.00018,2]
[404011971,1769717446969,-371.095,0.00018,2]
[404011972,1769717446979,-899.14048049,0.00018,2]
[404011973,1769717446990,-784.95280005,0.00018,2]
[404011974,1769717447001,-330.79089156,0.00018,2]
[404011975,1769717447011,-372.4285452,0.00018,2]
[404011976,1769717447022,-692.33650997,0.00018,2]
[404011977,1769717447038,-25069.42488506,0.00018,2]
[404011978,1769717447049,-12889.35044502,0.00018,2]
[404011979,1769717447060,-6400.27168544,0.00018,2]
[404011980,1769717447074,-379.12000001,0.00018,2]
[404011981,1769717447085,-4400.33003597,0.00018,2]
[404011982,1769717447208,-129668.49395532,0.00018,2]
[404011983,1769717447220,-3607.02658723,0.00018,2]
[404011995,1769718040710,1308.0,0.000129,5]
[404012003,1769718571152,-1124.10439265,0.00015807,2]
[404012004,1769718571172,-284.0,0.00016055,2]
[404012005,1769718602452,200.0,0.0001593,2]
[404012017,1769718631923,-151.0,0.00016286,2]
[404012018,1769718631933,-260.19,0.00016286,2]
[404012019,1769718631944,-500.0,0.00016373,2]
[404012020,1769718631954,-188.81,0.00016428,2]
[404012021,1769718632008,-11.19,0.00016428,2]
[404012022,1769718632018,-917.33587715,0.0001643,2]
[404012023,1769718632031,-935.08412285,0.0001643,2]
[404012024,1769718632041,-1200.0,0.00016465,2]
[404012025,1769718632051,-567.0,0.00016466,2]
[404012026,1769718632062,-550.0,0.00016466,2]
[404012027,1769718632073,-500.0,0.00016467,2]
[404012028,1769718632083,-196.84825466,0.00016467,2]
[404012029,1769718632093,-500.0,0.00016467,2]
[404012030,1769718632104,-500.0,0.00016467,2]
[404012031,1769718632114,-264.8777967,0.00016467,2]
[404012032,1769718632126,-235.1222033,0.00016467,2]
[404012033,1769718632137,-500.0,0.00016467,2]
[404012035,1769718632147,-500.0,0.00016467,2]
[404012037,1769718632157,-319.32348496,0.00016467,2]
[404012038,1769718632167,-500.0,0.00016467,2]
[404012039,1769718632177,-500.0,0.00016467,2]
[404012040,1769718632187,-500.0,0.00016467,2]
[404012041,1769718632198,-500.0,0.00016467,2]
[404012042,1769718632208,-500.0,0.00016467,2]
[404012043,1769718632218,-500.0,0.00016467,2]
[404012045,1769718632228,-500.0,0.00016467,2]
[404012047,1769718632238,-386.17771134,0.00016467,2]
[404012049,1769718632263,-113.82228866,0.00016467,2]
[404012050,1769718632274,-500.0,0.00016467,2]
[404012051,1769718632284,-500.0,0.00016467,2]
[404012052,1769718632295,-500.0,0.00016467,2]
[404012053,1769718632304,-512.5822973,0.00016468,2]
[404012054,1769718632317,-990.97939,0.00016468,2]
[404012055,1769718632329,-2655.20136658,0.00016468,2]
[404012056,1769718632340,-471.84604647,0.00016468,2]
[404012057,1769718632353,-609.653476,0.00016468,2]
[404012058,1769718632369,-1141.23538998,0.00016468,2]
[404012059,1769718638034,-151.0,0.00016293,2]
[404012060,1769718638050,-12484.80245723,0.00016468,2]
[404012061,1769718638066,-4166.94113788,0.00016468,2]
[404012062,1769718638083,-15856.43259735,0.00016468,2]
[404012063,1769718638104,-6003.3091171,0.00016468,2]
[404012069,1769718638225,-4176.20288896,0.00016468,2]
[404012080,1769718638427,-3196.65031194,0.00016468,2]
[404012084,1769718638455,-933.27304708,0.00016468,2]
[404012087,1769718638472,-4047.92225051,0.00016468,2]
[404012146,1769718640048,-865.01,0.00016468,2]
[404012156,1769718640169,-4254.068748,0.00016468,2]
[404012157,1769718640184,-420.7,0.00016468,2]
[404012164,1769718640278,-9269.77464529,0.00016468,2]
[404012165,1769718640292,-8700.60563233,0.00016468,2]
[404012166,1769718640304,-5072.18,0.00016584,2]
[404012167,1769718640316,-258.34,0.000166,2]
[404012168,1769718640327,-432.0664,0.0001667,2]
[404012169,1769718640339,-841.61,0.00016768,2]
[404012170,1769718640350,-777.61,0.00016798,2]
[404012171,1769718640361,-820.82,0.00016858,2]
[404012172,1769718640372,-1000.0,0.00016921,2]
[404012173,1769718640385,-262.0,0.00016922,2]
[404012174,1769718640397,-5586.90528756,0.0001696,2]
[404012175,1769718640409,-500.0,0.00016986,2]
[404012176,1769718640421,-151.0,0.00016997,2]
[404012177,1769718640434,-162.58095749,0.00016999,2]
[404012179,1769718640446,-500.0,0.00016999,2]
[404012180,1769718640459,-193.97011087,0.00016999,2]
[404012181,1769718640471,-261.6628002,0.00017,3]
[404012182,1769718640482,-412770.68401814,0.00017,2]
[404012193,1769718643667,-631.49851381,0.00017,2]
[404012194,1769718643678,-13423.36721614,0.00017,2]
[404012200,1769718644609,-352.00649617,0.00017,2]
[404012210,1769718646077,-1308.0,0.00017,2]
[404012211,1769718646189,-138202.00000001,0.00017,2]
[404012212,1769718646201,-1661.28240895,0.00017,2]
[404012213,1769718646244,-918.36546693,0.00017,2]
[404012214,1769718646255,-904.38145112,0.00017,2]
[404012215,1769718646266,-3030.5645071,0.00017,2]
[404012216,1769718646301,-6006.39368264,0.00017,2]
[404012454,1769718715587,5532.0,0.000129,5]
[404012458,1769719069691,168.2,0.00012753,2]
[404012463,1769719102451,1100.0,0.00013701,2]
[404012469,1769719633108,-166.66,0.00014687,2]
[404012470,1769719633129,-166.66,0.00014996,2]
[404012471,1769719633149,-166.66,0.00015305,2]
[404012472,1769719633170,-335.24856397,0.00015377,2]
[404012473,1769719706590,5933.89,0.00012429,2]
[404012474,1769719747234,-664.75143603,0.00015377,2]
[404012475,1769719747255,-2769.76265183,0.000155,2]
[404012476,1769719747277,-1200.0,0.00015572,2]
[404012477,1769719747311,-300.0,0.00015572,2]
[404012478,1769719747332,-307.39869762,0.00015573,2]
[404012479,1769719763105,-208.18,0.00015103,2]
[404012480,1769719763127,-7715.80130238,0.00015573,2]
[404012481,1769719763148,-166.66,0.00015614,2]
[404012482,1769719763168,-166.67,0.00015685,2]
[404012483,1769719763190,-151.0,0.00015819,2]
[404012484,1769719763210,-500.0,0.00015863,2]
[404012485,1769719763230,-283.0,0.00015878,2]
[404012486,1769719763251,-1223.72,0.00015878,2]
[404012487,1769719763272,-166.66,0.00015923,2]
[404012488,1769719763294,-250.0,0.00015937,2]
[404012489,1769719763321,-483.6,0.00015959,2]
[404012490,1769719763343,-500.0,0.00015999,2]
[404012491,1769719763367,-500.0,0.00015999,2]
[404012492,1769719763391,-500.0,0.00015999,2]
[404012493,1769719763413,-500.0,0.00015999,2]
[404012494,1769719763436,-500.0,0.00015999,2]
[404012495,1769719763458,-500.0,0.00015999,2]
[404012496,1769719763774,-350.0,0.00015999,2]
[404012497,1769719763799,-500.0,0.00015999,2]
[404012498,1769719763822,-500.0,0.00015999,2]
[404012499,1769719763845,-500.0,0.00015999,2]
[404012500,1769719763869,-500.0,0.00015999,2]
[404012501,1769719763894,-500.0,0.00015999,2]
[404012502,1769719763920,-500.0,0.00015999,2]
[404012503,1769719763944,-500.0,0.00015999,2]
[404012504,1769719763968,-500.0,0.00015999,2]
[404012505,1769719763992,-332.88330939,0.00015999,2]
[404012506,1769719764016,-500.0,0.00015999,2]
[404012507,1769719764042,-7309.44746012,0.00016,2]
[404012508,1769719764065,-12894.73173614,0.00016,2]
[404012509,1769719764086,-19289.74749401,0.00016,2]
[404012510,1769719764109,-26099.7066,0.00016,2]
[404012511,1769719765087,-5304.6,0.00016152,2]
[404012512,1769719765119,-150.0,0.00016152,2]
[404012513,1769719765143,-300.0,0.00016155,2]
[404012514,1769719765163,-3001.0722184,0.00016167,2]
[404012515,1769719765218,333.27596216,0.00016068,2]
[404012516,1769719767129,-2656.92353991,0.00016167,2]
[404012517,1769719767164,-500.0,0.00016176,2]
[404012518,1769719776617,151.0,0.00015893,2]
[404012519,1769719794327,151.0,0.00015893,2]
[404012520,1769719794451,2041.03,0.00015469,2]
[404012521,1769719795847,958.44647809,0.00016167,2]
[404012522,1769719809595,151.0,0.00015891,2]
[404012526,1769719832075,-152.66564789,0.000161,2]
[404012527,1769719832086,-300.0,0.00016166,2]
[404012528,1769719832096,-704.38234945,0.00016166,2]
[404012532,1769719832183,-495.61765055,0.00016166,2]
[404012533,1769719832197,-285.0,0.00016167,2]
[404012534,1769719832206,-3936.45301438,0.00016167,2]
[404012535,1769719832218,-4215.96203349,0.00016167,2]
[404012560,1769719832798,-501.0,0.00016167,2]
[404012561,1769719832809,-1450.71310277,0.00016167,2]
[404012562,1769719832820,-257.8752,0.00016167,2]
[404012563,1769719832842,-110.01447127,0.00016167,2]
[404012564,1769719832851,-2058.43713168,0.00016176,2]
[404012596,1769719838705,-1141.61675556,0.00016176,2]
[404012600,1769719838731,-5205.62314542,0.00016176,2]
[404012602,1769719838742,-1495.69732293,0.00016176,2]
[404012604,1769719838751,-166.66,0.00016233,2]
[404012606,1769719838760,-11324.68669898,0.00016243,2]
[404012608,1769719838771,-2100.84083535,0.00016243,2]
[404012610,1769719838784,-280.34589968,0.00016245,2]
[404012612,1769719838793,-500.0,0.00016257,2]
[404012614,1769719838802,-1258.76,0.00016263,2]
[404012616,1769719838811,-550.0,0.00016265,2]
[404012618,1769719838820,-500.0,0.00016266,2]
[404012620,1769719838830,-500.0,0.00016266,2]
[404012622,1769719838839,-500.0,0.00016266,2]
[404012624,1769719838849,-509.53416261,0.00016266,2]
[404012626,1769719838857,-500.0,0.00016266,2]
[404012628,1769719838867,-500.0,0.00016266,2]
[404012630,1769719838877,-193.97011088,0.00016266,2]
[404012632,1769719838886,-264.38723477,0.00016266,2]
[404012634,1769719838895,-500.0,0.00016267,2]
[404012635,1769719838904,-500.0,0.00016267,2]
[404012638,1769719838914,-7640.44628562,0.00016267,2]
[404012640,1769719838925,-7967.72470494,0.00016267,2]
[404012642,1769719838936,-10953.09439891,0.00016267,2]
[404012643,1769719838947,-318.39365544,0.00016267,2]
[404012646,1769719840171,-21309.06284727,0.00016267,2]
[404012647,1769719840216,-880.59146838,0.00016267,2]
[404012648,1769719840228,-6725.39,0.00016267,2]
[404012649,1769719840292,-367641.44223944,0.00016267,2]
[404012650,1769719840302,-150.0,0.00016267,2]
[404012651,1769719840311,-1736.93,0.00016276,2]
[404012652,1769719840320,-150.0,0.00016291,2]
[404012653,1769719840330,-181.89,0.0001635,2]
[404012654,1769719840339,-5657.99575829,0.0001636,2]
[404012655,1769719840348,-3181.42556373,0.00016365,2]
[404012656,1769719840357,-716.6413025,0.00016367,2]
[404012657,1769719840366,-150.0,0.00016367,2]
[404012658,1769719840375,-9901.37435555,0.00016368,2]
[404012659,1769719840385,-524.60055371,0.00016373,2]
[404012660,1769719840394,-155.14543439,0.000164,2]
[404012661,1769719840403,-1098.3,0.00016438,2]
[404012662,1769719840414,-166.49289447,0.00016467,2]
[404012663,1769719840423,-262.0,0.00016468,2]
[404012664,1769719840432,-2520.0,0.00016497,2]
[404012665,1769719840441,-5657.99575829,0.00016552,2]
[404012666,1769719840451,-9901.37435555,0.00016559,2]
[404012667,1769719840460,-151.0,0.00016594,2]
[404012668,1769719840470,-2520.0,0.00016597,2]
[404012669,1769719840479,-308.0,0.00016671,2]
[404012670,1769719840488,-1270.8260631,0.00016687,2]
[404012671,1769719840498,-1098.3,0.00016712,2]
[404012672,1769719840508,-1110.74,0.00016712,2]
[404012673,1769719840518,-5615.7995,0.0001673,2]
[404012674,1769719840529,-432.0664,0.0001673,2]
[404012675,1769719840538,-5657.99575829,0.00016745,2]
[404012676,1769719840549,-311.0,0.00016768,2]
[404012678,1769719840558,-311.0,0.00016799,2]
[404012679,1769719840568,-11083.89433479,0.00016818,2]
[404012680,1769719840578,-311.0,0.00016822,2]
[404012681,1769719840588,-500.0,0.00016829,2]
[404012682,1769719840599,-120441.37402622,0.0001683,2]
[404012684,1769719840608,-581.30463061,0.00016831,2]
[404012686,1769719840618,-236.0,0.00016918,2]
[404012688,1769719840627,-151.0,0.00016927,2]
[404012689,1769719840638,-531121.12637315,0.0001693,2]
[404012702,1769719840745,-7968.61338269,0.00016751,2]
[404012704,1769719840756,-919.39818052,0.00016751,2]
[404012719,1769719840882,-1013.36279234,0.00016751,2]
[404012721,1769719840891,-2375.83366019,0.0001693,2]
[404012723,1769719840901,-634.63047639,0.0001693,2]
[404012725,1769719840917,-1736.33370989,0.0001693,2]
[404012774,1769719843857,-1725.3397986,0.0001693,2]
[404012775,1769719844649,-28535.14265048,0.0001693,2]
[404012776,1769719844659,-5739.8554781,0.00016931,2]
[404012777,1769719844669,-930.5511922,0.00016931,2]
[404012778,1769719844679,-1707.351853,0.00016931,2]
[404012779,1769719844688,-5657.99575829,0.00016937,2]
[404012780,1769719844697,-1037.98761411,0.00016963,2]
[404012781,1769719844709,-166.67,0.0001698,2]
[404012782,1769719844719,-1098.3,0.00016986,2]
[404012783,1769719844729,-500.0,0.00016999,2]
[404012784,1769719844739,-531.48175554,0.00016999,2]
[404012785,1769719844748,-500.0,0.00016999,2]
[404012786,1769719844758,-500.0,0.00016999,2]
[404012787,1769719844767,-500.0,0.00016999,2]
[404012788,1769719844776,-500.0,0.00016999,2]
[404012789,1769719844786,-500.0,0.00016999,2]
[404012790,1769719844795,-500.0,0.00016999,2]
[404012791,1769719844805,-500.0,0.00016999,2]
[404012792,1769719844814,-500.0,0.00016999,2]
[404012793,1769719844825,-4348.81641458,0.00017,2]
[404012794,1769719844836,-160.0,0.00017,2]
[404012795,1769719844845,-1597.57754792,0.00017,2]
[404012796,1769719844854,-250.0,0.00017,2]
[404012797,1769719844863,-151.0,0.00017,2]
[404012798,1769719844873,-500.0,0.00017058,2]
[404012799,1769719844883,-203.62711429,0.00017058,2]
[404012800,1769719844895,-500.0,0.00017059,2]
[404012801,1769719844905,-500.0,0.00017059,2]
[404012802,1769719844914,-167.01306335,0.00017059,2]
[404012803,1769719844924,-322.6107,0.0001706,2]
[404012804,1769719844934,-209.40437684,0.0001706,2]
[404012805,1769719844945,-500.0,0.0001706,2]
[404012806,1769719844954,-500.0,0.0001706,2]
[404012807,1769719844963,-500.0,0.0001706,2]
[404012808,1769719844972,-500.0,0.0001706,2]
[404012809,1769719844982,-500.0,0.0001706,2]
[404012810,1769719844991,-500.0,0.0001706,2]
[404012811,1769719845000,-500.0,0.0001706,2]
[404012812,1769719845009,-500.0,0.0001706,2]
[404012813,1769719845019,-500.0,0.0001706,2]
[404012814,1769719845028,-721.12765535,0.0001706,2]
[404012815,1769719845042,-500.0,0.0001706,2]
[404012816,1769719845053,-500.0,0.0001706,2]
[404012817,1769719845062,-500.0,0.0001706,2]
[404012818,1769719845071,-500.0,0.0001706,2]
[404012819,1769719845081,-500.0,0.0001706,2]
[404012820,1769719845092,-500.0,0.0001706,2]
[404012821,1769719845101,-500.0,0.0001706,2]
[404012822,1769719845110,-500.0,0.0001706,2]
[404012823,1769719845122,-500.0,0.0001706,2]
[404012824,1769719845131,-500.0,0.0001706,2]
[404012825,1769719845141,-500.0,0.0001706,2]
[404012826,1769719845151,-500.0,0.0001706,2]
[404012827,1769719845161,-500.0,0.0001706,2]
[404012828,1769719845170,-500.0,0.0001706,2]
[404012829,1769719845179,-500.0,0.0001706,2]
[404012830,1769719845188,-500.0,0.0001706,2]
[404012831,1769719845198,-500.0,0.0001706,2]
[404012832,1769719845207,-582.77228948,0.0001706,2]
[404012833,1769719845216,-174.61919141,0.0001706,2]
[404012834,1769719845227,-500.0,0.0001706,2]
[404012835,1769719845240,-578.20924308,0.0001706,2]
[404012836,1769719845249,-209.40437684,0.0001706,2]
[404012837,1769719845258,-500.0,0.0001706,2]
[404012838,1769719845268,-500.0,0.0001706,2]
[404012839,1769719845278,-500.0,0.0001706,2]
[404012840,1769719845289,-500.0,0.0001706,2]
[404012842,1769719845299,-500.0,0.0001706,2]
[404012845,1769719845308,-500.0,0.0001706,2]
[404012847,1769719845317,-500.0,0.0001706,2]
[404012848,1769719845327,-500.0,0.0001706,2]
[404012851,1769719845336,-500.0,0.0001706,2]
[404012853,1769719845346,-500.0,0.0001706,2]
[404012855,1769719845357,-500.0,0.0001706,2]
[404012857,1769719845367,-359.76179104,0.0001706,2]
[404012858,1769719845376,-209.40437684,0.0001706,2]
[404012860,1769719845386,-250.0,0.0001706,2]
[404012863,1769719845396,-250.0,0.0001706,2]
[404012865,1769719845406,-250.0,0.0001706,2]
[404012867,1769719845416,-250.0,0.0001706,2]
[404012869,1769719845426,-250.0,0.0001706,2]
[404012871,1769719845439,-250.0,0.0001706,2]
[404012872,1769719845449,-250.0,0.0001706,2]
[404012873,1769719845458,-250.0,0.0001706,2]
[404012874,1769719845467,-250.0,0.0001706,2]
[404012875,1769719845477,-250.0,0.0001706,2]
[404012876,1769719845486,-250.0,0.0001706,2]
[404012877,1769719845496,-250.0,0.0001706,2]
[404012878,1769719845505,-250.0,0.0001706,2]
[404012879,1769719845515,-250.0,0.0001706,2]
[404012880,1769719845524,-500.0,0.0001706,2]
[404012881,1769719845534,-250.0,0.0001706,2]
[404012882,1769719845543,-266.88383045,0.0001706,2]
[404012883,1769719845554,-250.0,0.0001706,2]
[404012884,1769719845563,-500.0,0.0001706,2]
[404012885,1769719845573,-250.0,0.0001706,2]
[404012886,1769719845582,-250.0,0.0001706,2]
[404012887,1769719845592,-500.0,0.0001706,2]
[404012888,1769719845602,-250.0,0.0001706,2]
[404012889,1769719845611,-250.0,0.0001706,2]
[404012890,1769719845624,-500.0,0.0001706,2]
[404012891,1769719845634,-250.0,0.0001706,2]
[404012892,1769719845644,-250.0,0.0001706,2]
[404012893,1769719845653,-500.0,0.0001706,2]
[404012894,1769719845663,-250.0,0.0001706,2]
[404012895,1769719845673,-500.0,0.0001706,2]
[404012896,1769719845682,-250.0,0.0001706,2]
[404012897,1769719845692,-500.0,0.0001706,2]
[404012898,1769719845701,-250.0,0.0001706,2]
[404012899,1769719845711,-500.0,0.0001706,2]
[404012900,1769719845720,-250.0,0.0001706,2]
[404012901,1769719845730,-250.0,0.0001706,2]
[404012902,1769719845740,-250.0,0.0001706,2]
[404012903,1769719845749,-250.0,0.0001706,2]
[404012904,1769719845758,-250.0,0.0001706,2]
[404012905,1769719845768,-209.40437684,0.0001706,2]
[404012906,1769719845777,-250.0,0.0001706,2]
[404012907,1769719845787,-250.0,0.0001706,2]
[404012908,1769719845797,-250.0,0.0001706,2]
[404012909,1769719845806,-250.0,0.0001706,2]
[404012910,1769719845818,-854.2589148,0.0001706,2]
[404012911,1769719845829,-1826.0,0.00017069,2]
[404012912,1769719845841,-1258.76,0.00017076,2]
[404012913,1769719845851,-724.8,0.00017111,2]
[404012914,1769719845862,-217.15233878,0.00017115,2]
[404012915,1769719845871,-581.3046306,0.00017116,2]
[404012916,1769719845881,-5657.99575829,0.0001713,2]
[404012917,1769719845890,-225.18697532,0.0001717,2]
[404012918,1769719845900,-233.51889341,0.00017225,2]
[404012919,1769719845909,-200.0,0.0001724,2]
[404012920,1769719845919,-1098.3,0.0001726,2]
[404012921,1769719845929,-387.0,0.00017263,2]
[404012922,1769719845938,-1826.0,0.00017275,2]
[404012923,1769719845948,-242.15909246,0.0001728,2]
[404012924,1769719845958,-1000.0,0.000173,2]
[404012925,1769719845968,-2019.0,0.000173,2]
[404012926,1769719845977,-5657.99575829,0.00017322,2]
[404012927,1769719845987,-1826.0,0.00017332,2]
[404012928,1769719845996,-251.11897888,0.00017335,2]
[404012929,1769719846006,-1110.78417923,0.00017339,5]
[404012930,1769719846016,-387.0,0.00017384,2]
[404012931,1769719846026,-935.0,0.00017387,2]
[404012932,1769719846037,-260.4103811,0.0001739,2]
[404012933,1769719846047,-581.3046306,0.000174,2]
[404012934,1769719846061,-200.0,0.0001742,2]
[404012935,1769719846070,-200.0,0.00017422,2]
[404012936,1769719846082,-777.61,0.00017428,2]
[404012937,1769719846092,-270.0455652,0.00017445,2]
[404012938,1769719846102,-387.0,0.00017467,2]
[404012939,1769719846111,-387.0,0.00017487,2]
[404012940,1769719846122,-151.0,0.00017497,2]
[404012941,1769719846132,-387.0,0.00017498,2]
[404012942,1769719846141,-87.49832687,0.00017499,2]
[404012943,1769719846155,-557.01588705,0.00017499,2]
[404012944,1769719846165,-378.56522147,0.00017499,2]
[404012945,1769719846174,-500.0,0.00017499,2]
[404012946,1769719846184,-500.0,0.00017499,2]
[404012947,1769719846193,-500.0,0.00017499,2]
[404012948,1769719846202,-2601.73103148,0.00017499,2]
[404012955,1769719847191,-915.28946468,0.00016942,2]
[404012956,1769719847272,-6000.2941275,0.00016942,2]
[404012957,1769719847284,-394.245,0.00016942,2]
[404012958,1769719847295,-2591.54576337,0.00016942,2]
[404012959,1769719847305,-1439.55900529,0.00017499,2]
[404012960,1769719847338,-384.22220303,0.00017499,2]
[404012961,1769719847393,-1108.4877602,0.00017499,2]
[404012962,1769719847402,-280.03725112,0.000175,2]
[404012963,1769719847411,-1051.47498868,0.000175,3]
[404012964,1769719847422,-71457.99550377,0.000175,3]
[404012965,1769719847432,-85928.0299974,0.000175,3]
[404012966,1769719847443,-100968.28294818,0.000175,3]
[404012967,1769719847452,-1605.67006899,0.000175,2]
[404012968,1769719847461,-387.0,0.000175,2]
[404012969,1769719847471,-1500.0,0.000175,2]
[404012970,1769719847480,-4452.0,0.00017507,2]
[404012971,1769719847489,-2219.95521694,0.00017515,2]
[404012972,1769719847500,-3438.04054135,0.00017515,2]
[404012973,1769719847510,-5534.0,0.00017524,2]
[404012974,1769719847519,-1098.3,0.00017534,2]
[404012975,1769719847529,-290.39862941,0.00017555,2]
[404012976,1769719847540,-1826.0,0.00017566,2]
[404012977,1769719847549,-8134.0,0.00017567,2]
[404012978,1769719847558,-1826.0,0.00017591,2]
[404012979,1769719847567,-217.15233878,0.00017608,2]
[404012980,1769719847577,-181.08010149,0.00017608,2]
[404012981,1769719847586,-217.15233878,0.00017608,2]
[404012982,1769719847595,-373.07297731,0.00017608,2]
[404012983,1769719847604,-367.66577198,0.00017608,2]
[404012984,1769719847614,-885.86649465,0.00017608,2]
[404012985,1769719847623,-301.1433787,0.0001761,2]
[404012986,1769719847632,-4452.0,0.00017652,2]
[404012987,1769719847641,-387.0,0.00017661,2]
[404012988,1769719847650,-420.0,0.00017672,2]
[404012989,1769719847661,-5534.0,0.00017676,2]
[404012990,1769719847671,-165.289873,0.00017676,2]
[404012991,1769719847681,-165.289873,0.00017676,2]
[404012992,1769719847691,-165.289873,0.00017676,2]
[404012993,1769719847700,-165.289873,0.00017676,2]
[404012994,1769719847712,-170.95,0.00017693,2]
[404012995,1769719847721,-500.0,0.00017699,2]
[404012996,1769719847730,-500.0,0.00017699,2]
[404012997,1769719847740,-627.0,0.00017699,2]
[404012998,1769719847750,-150.0,0.00017699,2]
[404012999,1769719847759,-150.0,0.00017699,2]
[404013000,1769719847770,-154.30496973,0.00017699,2]
[404013001,1769719847779,-517.0,0.00017699,2]
[404013002,1769719847792,-500.0,0.00017699,2]
[404013003,1769719847801,-158.93525549,0.00017699,2]
[404013004,1769719847811,-500.0,0.00017699,2]
[404013005,1769719847820,-500.0,0.00017699,2]
[404013006,1769719847829,-500.0,0.00017699,2]
[404013007,1769719847839,-240.49848305,0.00017699,2]
[404013008,1769719847849,-500.0,0.00017699,2]
[404013009,1769719847859,-500.0,0.00017699,2]
[404013010,1769719847868,-150.0,0.00017699,2]
[404013011,1769719847878,-150.0,0.00017699,2]
[404013012,1769719847887,-150.0,0.00017699,2]
[404013013,1769719847897,-150.0,0.00017699,2]
[404013014,1769719847906,-500.0,0.00017699,2]
[404013015,1769719847916,-782.1570349,0.000177,2]
[404013016,1769719847926,-403.0,0.000177,5]
[404013017,1769719847935,-335.29081067,0.00017706,2]
[404013018,1769719847944,-5657.99575829,0.00017707,2]
[404013019,1769719847954,-150.99,0.00017728,2]
[404013020,1769719847963,-2675.17,0.00017728,2]
[404013021,1769719847972,-2583.04,0.00017728,2]
[404013022,1769719847981,-9999.99,0.00017728,2]
[404013023,1769719847991,-150.99,0.00017728,2]
[404013024,1769719848000,-999.99,0.00017728,2]
[404013025,1769719848009,-329.69,0.00017728,2]
[404013026,1769719848019,-1403.15,0.00017728,2]
[404013027,1769719848028,-299.99,0.00017728,4]
[404013028,1769719848039,-1000.0,0.00017738,2]
[404013029,1769719848049,-500.0,0.00017754,2]
[404013030,1769719848062,-500.0,0.00017754,2]
[404013031,1769719848071,-627.0,0.00017754,2]
[404013032,1769719848081,-150.0,0.00017754,2]
[404013033,1769719848090,-150.0,0.00017754,2]
[404013034,1769719848101,-517.0,0.00017754,2]
[404013035,1769719848111,-500.0,0.00017754,2]
[404013036,1769719848120,-500.0,0.00017754,2]
[404013037,1769719848130,-500.0,0.00017754,2]
[404013038,1769719848139,-500.0,0.00017754,2]
[404013039,1769719848149,-500.0,0.00017754,2]
[404013040,1769719848159,-500.0,0.00017754,2]
[404013041,1769719848168,-200.0,0.00017754,2]
[404013042,1769719848178,-150.0,0.00017754,2]
[404013043,1769719848187,-500.0,0.00017754,2]
[404013044,1769719848197,-1680.0,0.00017761,2]
[404013045,1769719848207,-500.0,0.00017781,2]
[404013046,1769719848216,-250.0,0.00017783,2]
[404013047,1769719848229,-195.0,0.00017783,2]
[404013048,1769719848239,-1000.0,0.00017783,2]
[404013049,1769719848248,-1000.0,0.00017789,2]
[404013050,1769719848257,-181.89,0.00017795,2]
[404013051,1769719848267,-1000.0,0.00017804,2]
[404013052,1769719848276,-1000.0,0.00017805,2]